fUSD/lending_fUSD_20241206
["ID","MTS","AMOUNT","RATE_DAILY","PERIOD"]
[344495098,1733518238414,-250.0,8.268e-05,2]
[344495099,1733518238423,-150.0,8.286e-05,2]
[344495100,1733518238434,-1082.8,8.291e-05,2]
[344495101,1733518238443,-179.51,8.372e-05,2]
[344495103,1733518238453,-375.58962311,8.422e-05,2]
[344495104,1733518238462,-200.0,8.74e-05,2]
[344495106,1733518238475,-870.34,8.758e-05,2]
[344495108,1733518238484,-150.0,8.766e-05,2]
[344495110,1733518238493,-11971.48130798,8.767e-05,2]
[344495113,1733518238504,-5290.90688747,8.767e-05,2]
[344495116,1733518238525,-6741.74180455,8.767e-05,2]
[344495118,1733518238535,-444.82,8.768e-05,2]
[344495119,1733518238544,-435.17,8.793e-05,2]
[344495121,1733518238553,-375.58962311,8.793e-05,2]
[344495123,1733518238562,-420.0,8.839e-05,2]
[344495125,1733518238572,-435.17,8.868e-05,2]
[344495127,1733518238582,-435.17,8.868e-05,2]
[344495129,1733518238591,-435.17,8.868e-05,2]
[344495131,1733518238600,-17.16857234,9e-05,3]
[344495134,1733518238611,-982.83142766,9e-05,3]
[344495136,1733518238620,-2000.0,9.1e-05,3]
[344495138,1733518238629,-609.212,9.11e-05,2]
[344495140,1733518238638,-1674.0,9.183e-05,2]
[344495142,1733518238648,-3000.0,9.2e-05,3]
[344495143,1733518238657,-480.75,9.229e-05,2]
[344495145,1733518238666,-1000.0,9.247e-05,2]
[344495147,1733518238677,-430.4729,9.26e-05,2]
[344495149,1733518238687,-435.17,9.286e-05,2]
[344495151,1733518238697,-885.64,9.286e-05,2]
[344495153,1733518238706,-435.17,9.286e-05,2]
[344495155,1733518238715,-2014.3718,9.289e-05,2]
[344495157,1733518238725,-3851.358,9.289e-05,2]
[344495159,1733518238734,-36634.7114,9.289e-05,2]
[344495161,1733518238743,-6767.44,9.289e-05,2]
[344495163,1733518238753,-2028.0399,9.289e-05,2]
[344495165,1733518238762,-4000.0,9.3e-05,3]
[344495167,1733518238771,-400.0,9.3e-05,3]
[344495169,1733518238780,-300.0,9.3e-05,3]
[344495171,1733518238789,-18916.4735,9.3e-05,2]
[344495173,1733518238798,-3080.4513,9.389e-05,2]
[344495175,1733518238807,-516.128,9.389e-05,2]
[344495177,1733518238818,-156.6549625,9.389e-05,2]
[344495179,1733518238827,-37486.72740706,9.389e-05,2]
[344495181,1733518238836,-5643.57887991,9.389e-05,2]
[344495183,1733518238845,-193.72,9.396e-05,2]
[344495185,1733518238854,-1000.0,9.399e-05,2]
[344495187,1733518238863,-2500.0,9.399e-05,2]
[344495189,1733518238872,-5000.0,9.4e-05,3]
[344495191,1733518238881,-800.0,9.4e-05,3]
[344495193,1733518238890,-700.0,9.4e-05,3]
[344495195,1733518238899,-174.29,9.438e-05,2]
[344495197,1733518238908,-156.6549625,9.456e-05,2]
[344495199,1733518238917,-973.0,9.458e-05,2]
[344495201,1733518238929,-13707.0,9.458e-05,2]
[344495203,1733518238939,-5964.0,9.458e-05,2]
[344495204,1733518238948,-150.0,9.458e-05,2]
[344495207,1733518238957,-588.433,9.458e-05,2]
[344495209,1733518238966,-2500.0,9.489e-05,2]
[344495211,1733518238976,-11235.67358447,9.489e-05,2]
[344495212,1733518238985,-322.97379692,9.489e-05,2]
[344495214,1733518238994,-500.0,9.489e-05,2]
[344495217,1733518239003,-157.51248587,9.499e-05,2]
[344495218,1733518239013,-39741.74273213,9.499e-05,2]
[344495221,1733518239022,-39741.74273205,9.499e-05,2]
[344495222,1733518239031,-39741.74273205,9.499e-05,2]
[344495224,1733518239041,-18168.07399626,9.5e-05,2]
[344495226,1733518239050,-6393.32097408,9.5e-05,2]
[344495228,1733518239059,-1000.0,9.5e-05,3]
[344495230,1733518239068,-1200.0,9.5e-05,3]
[344495232,1733518239078,-1100.0,9.5e-05,3]
[344495234,1733518239087,-39741.74273205,9.502e-05,2]
[344495236,1733518239096,-39741.74273205,9.516e-05,2]
[344495238,1733518239106,-156.6549625,9.522e-05,2]
[344495240,1733518239118,-166.81,9.526e-05,2]
[344495242,1733518239127,-39741.74273205,9.531e-05,2]
[344495244,1733518239136,-24378.45172996,9.545e-05,2]
[344495247,1733518239163,-4943.989248,9.545e-05,2]
[344495248,1733518239175,-4803.90165,9.545e-05,2]
[344495249,1733518239186,-5615.40010409,9.545e-05,2]
[344495250,1733518239195,-150.0,9.549e-05,2]
[344495251,1733518239203,-9451.08220081,9.56e-05,2]
[344495252,1733518239215,-1982.3250816,9.56e-05,2]
[344495253,1733518239226,-4983.74515392,9.56e-05,2]
[344495254,1733518239237,-2027.15,9.56e-05,2]
[344495255,1733518239248,-4078.8,9.56e-05,2]
[344495256,1733518239282,-3016.49003497,9.56e-05,2]
[344495257,1733518239293,-5218.84206164,9.56e-05,2]
[344495258,1733518239312,-809.284128,9.56e-05,2]
[344495259,1733518239323,-424.999955,9.56e-05,2]
[344495260,1733518239333,-469.0400532,9.56e-05,2]
[344495265,1733518240032,-271.68899781,9.56e-05,2]
[344495266,1733518240043,-1273.8772807,9.56e-05,2]
[344495267,1733518240054,-251.64334789,9.56e-05,2]
[344495268,1733518240101,-643.31999999,9.56e-05,2]
[344495269,1733518240111,-425.85811,9.56e-05,2]
[344495273,1733518240494,-474.49056838,9.56e-05,2]
[344495283,1733518243058,-530.229985,7.806e-05,2]
[344495286,1733518243069,-562.39668,7.806e-05,2]
[344495288,1733518243080,-882.613335,7.806e-05,2]
[344495290,1733518243090,-500.0,9.399e-05,2]
[344495292,1733518243100,-1800.0,9.4e-05,3]
[344495294,1733518243109,-3136.93898662,9.56e-05,2]
[344495296,1733518243120,-802.16677152,9.56e-05,2]
[344495298,1733518243129,-4584.95301728,9.562e-05,2]
[344495302,1733518243156,-335.6706609,9.562e-05,2]
[344495304,1733518243167,-3360.37632182,9.562e-05,2]
[344495305,1733518243178,-382.0,9.562e-05,2]
[344495306,1733518243188,-43601.0,9.562e-05,2]
[344495307,1733518243197,-846.0,9.562e-05,2]
[344495308,1733518243206,-392.0,9.562e-05,2]
[344495310,1733518243215,-387.98447021,9.563e-05,2]
[344495312,1733518243225,-500.0,9.563e-05,2]
[344495314,1733518243234,-201.94019664,9.563e-05,2]
[344495316,1733518243243,-500.0,9.563e-05,2]
[344495318,1733518243252,-500.0,9.563e-05,2]
[344495320,1733518243261,-161.06813051,9.563e-05,2]
[344495322,1733518243271,-500.0,9.563e-05,2]
[344495324,1733518243280,-39741.74273205,9.574e-05,2]
[344495326,1733518243289,-447.5284693,9.581e-05,2]
[344495328,1733518243298,-4900.0287455,9.581e-05,2]
[344495330,1733518243307,-10145.1915616,9.581e-05,2]
[344495332,1733518243316,-3661.4802011,9.581e-05,2]
[344495334,1733518243325,-557.8674708,9.581e-05,2]
[344495336,1733518243334,-1427.0840487,9.581e-05,2]
[344495338,1733518243344,-500.0,9.587e-05,2]
[344495340,1733518243358,-500.0,9.587e-05,2]
[344495342,1733518243368,-500.0,9.587e-05,2]
[344495344,1733518243377,-500.0,9.587e-05,2]
[344495346,1733518243386,-500.0,9.587e-05,2]
[344495347,1733518243395,-500.0,9.587e-05,2]
[344495348,1733518243405,-500.0,9.587e-05,2]
[344495349,1733518243413,-500.0,9.587e-05,2]
[344495350,1733518243422,-174.60261009,9.587e-05,2]
[344495351,1733518243434,-500.0,9.587e-05,2]
[344495352,1733518243442,-500.0,9.587e-05,2]
[344495353,1733518243452,-500.0,9.587e-05,2]
[344495354,1733518243462,-500.0,9.587e-05,2]
[344495355,1733518243473,-500.0,9.587e-05,2]
[344495356,1733518243482,-500.0,9.587e-05,2]
[344495357,1733518243491,-500.0,9.587e-05,2]
[344495358,1733518243501,-500.0,9.587e-05,2]
[344495359,1733518243510,-500.0,9.587e-05,2]
[344495360,1733518243519,-500.0,9.587e-05,2]
[344495361,1733518243528,-500.0,9.587e-05,2]
[344495362,1733518243538,-647.910039,9.587e-05,2]
[344495363,1733518243547,-500.0,9.587e-05,2]
[344495365,1733518243557,-500.0,9.587e-05,2]
[344495366,1733518243566,-500.0,9.587e-05,2]
[344495368,1733518243574,-500.0,9.587e-05,2]
[344495370,1733518243583,-500.0,9.587e-05,2]
[344495372,1733518243592,-583.55664887,9.587e-05,2]
[344495374,1733518243601,-500.0,9.587e-05,2]
[344495376,1733518243611,-3000.0,9.588e-05,2]
[344495378,1733518243620,-3000.0,9.588e-05,2]
[344495379,1733518243629,-3000.0,9.588e-05,2]
[344495381,1733518243638,-3000.0,9.588e-05,2]
[344495383,1733518243647,-3000.0,9.588e-05,2]
[344495385,1733518243657,-3000.0,9.588e-05,3]
[344495386,1733518243666,-3000.0,9.588e-05,3]
[344495387,1733518243675,-3000.0,9.588e-05,3]
[344495388,1733518243685,-3000.0,9.588e-05,3]
[344495389,1733518243694,-3000.0,9.588e-05,3]
[344495390,1733518243704,-2000.0,9.588e-05,2]
[344495391,1733518243714,-859.15,9.588e-05,2]
[344495392,1733518243723,-2000.0,9.588e-05,2]
[344495393,1733518243732,-5857.28,9.588e-05,2]
[344495394,1733518243741,-554.0,9.588e-05,2]
[344495395,1733518243750,-1163380.05619598,9.588e-05,2]
[344495396,1733518243759,-86664.3510056,9.588e-05,2]
[344495397,1733518243768,-500.0,9.589e-05,2]
[344495398,1733518243777,-500.0,9.589e-05,2]
[344495399,1733518243786,-500.0,9.589e-05,2]
[344495400,1733518243795,-500.0,9.589e-05,2]
[344495401,1733518243804,-500.0,9.589e-05,2]
[344495402,1733518243814,-500.0,9.589e-05,2]
[344495403,1733518243823,-500.7861398,9.589e-05,2]
[344495404,1733518243832,-500.0,9.589e-05,2]
[344495405,1733518243843,-500.0,9.589e-05,2]
[344495406,1733518243852,-336.81830513,9.589e-05,2]
[344495407,1733518243862,-500.0,9.589e-05,2]
[344495408,1733518243871,-500.0,9.589e-05,2]
[344495409,1733518243881,-500.0,9.589e-05,2]
[344495410,1733518243890,-500.0,9.589e-05,2]
[344495411,1733518243899,-500.0,9.589e-05,2]
[344495412,1733518243908,-204.3734784,9.589e-05,2]
[344495413,1733518243917,-500.0,9.589e-05,2]
[344495414,1733518243929,-500.0,9.589e-05,2]
[344495415,1733518243938,-500.0,9.589e-05,2]
[344495416,1733518243947,-500.0,9.589e-05,2]
[344495417,1733518243956,-500.0,9.589e-05,2]
[344495418,1733518243965,-500.0,9.589e-05,2]
[344495419,1733518243974,-500.0,9.589e-05,2]
[344495420,1733518243984,-500.0,9.589e-05,2]
[344495421,1733518243993,-500.0,9.589e-05,2]
[344495422,1733518244002,-500.0,9.589e-05,2]
[344495423,1733518244012,-207.242217,9.589e-05,2]
[344495424,1733518244021,-559.38365627,9.589e-05,2]
[344495425,1733518244030,-485.80416286,9.589e-05,2]
[344495426,1733518244039,-500.0,9.589e-05,2]
[344495427,1733518244048,-500.0,9.589e-05,2]
[344495428,1733518244057,-500.0,9.589e-05,2]
[344495429,1733518244067,-500.0,9.589e-05,2]
[344495430,1733518244076,-500.0,9.589e-05,2]
[344495431,1733518244085,-500.0,9.589e-05,2]
[344495432,1733518244094,-500.0,9.589e-05,2]
[344495433,1733518244103,-500.0,9.589e-05,2]
[344495434,1733518244112,-370.69045851,9.589e-05,2]
[344495435,1733518244121,-500.0,9.589e-05,2]
[344495436,1733518244130,-500.0,9.589e-05,2]
[344495437,1733518244139,-500.0,9.589e-05,2]
[344495438,1733518244148,-500.0,9.589e-05,2]
[344495439,1733518244158,-500.0,9.589e-05,2]
[344495440,1733518244167,-520.8390688,9.589e-05,2]
[344495441,1733518244177,-500.0,9.589e-05,2]
[344495442,1733518244186,-500.0,9.589e-05,2]
[344495443,1733518244196,-756.84,9.589e-05,2]
[344495444,1733518244205,-756.84,9.589e-05,2]
[344495445,1733518244215,-756.84,9.589e-05,2]
[344495446,1733518244224,-756.84,9.589e-05,2]
[344495447,1733518244233,-756.84,9.589e-05,2]
[344495448,1733518244242,-756.84,9.589e-05,2]
[344495449,1733518244251,-756.84,9.589e-05,2]
[344495450,1733518244260,-756.84,9.589e-05,2]
[344495451,1733518244269,-756.84,9.589e-05,2]
[344495452,1733518244278,-756.84,9.589e-05,2]
[344495453,1733518244288,-756.84,9.589e-05,2]
[344495454,1733518244297,-756.84,9.589e-05,2]
[344495455,1733518244306,-756.84,9.589e-05,2]
[344495456,1733518244315,-756.84,9.589e-05,2]
[344495457,1733518244324,-756.84,9.589e-05,2]
[344495458,1733518244333,-756.84,9.589e-05,2]
[344495459,1733518244342,-756.84,9.589e-05,2]
[344495460,1733518244351,-756.84,9.589e-05,2]
[344495461,1733518244360,-756.84,9.589e-05,2]
[344495462,1733518244369,-756.84,9.589e-05,2]
[344495463,1733518244378,-756.84,9.589e-05,2]
[344495464,1733518244387,-756.84,9.589e-05,2]
[344495465,1733518244396,-756.84,9.589e-05,2]
[344495466,1733518244405,-756.94610958,9.589e-05,2]
[344495467,1733518244415,-641.41072203,9.589e-05,2]
[344495468,1733518244425,-500.0,9.589e-05,2]
[344495469,1733518244437,-500.0,9.589e-05,2]
[344495470,1733518244447,-500.0,9.589e-05,2]
[344495471,1733518244457,-500.0,9.589e-05,2]
[344495472,1733518244470,-500.0,9.589e-05,2]
[344495473,1733518244480,-500.0,9.589e-05,2]
[344495474,1733518244490,-500.0,9.589e-05,2]
[344495475,1733518244500,-500.0,9.589e-05,2]
[344495476,1733518244510,-500.0,9.589e-05,2]
[344495477,1733518244519,-500.0,9.589e-05,2]
[344495478,1733518244527,-502.4,9.589e-05,2]
[344495479,1733518244537,-502.4,9.589e-05,2]
[344495480,1733518244546,-502.4,9.589e-05,2]
[344495481,1733518244555,-502.4,9.589e-05,2]
[344495482,1733518244564,-502.4,9.589e-05,2]
[344495483,1733518244573,-502.4,9.589e-05,2]
[344495484,1733518244582,-502.4,9.589e-05,2]
[344495485,1733518244591,-502.4,9.589e-05,2]
[344495486,1733518244601,-502.4,9.589e-05,2]
[344495487,1733518244611,-502.4,9.589e-05,2]
[344495488,1733518244621,-502.4,9.589e-05,2]
[344495489,1733518244630,-502.4,9.589e-05,2]
[344495490,1733518244640,-502.4,9.589e-05,2]
[344495491,1733518244649,-502.4,9.589e-05,2]
[344495492,1733518244660,-502.4,9.589e-05,2]
[344495493,1733518244670,-502.4,9.589e-05,2]
[344495494,1733518244681,-502.4,9.589e-05,2]
[344495495,1733518244691,-502.4,9.589e-05,2]
[344495496,1733518244700,-502.4,9.589e-05,2]
[344495497,1733518244710,-502.4,9.589e-05,2]
[344495498,1733518244720,-500.0,9.589e-05,2]
[344495499,1733518244737,-502.4,9.589e-05,2]
[344495500,1733518244746,-500.0,9.589e-05,2]
[344495501,1733518244755,-502.4,9.589e-05,2]
[344495502,1733518244764,-500.0,9.589e-05,2]
[344495503,1733518244773,-502.4,9.589e-05,2]
[344495504,1733518244782,-500.0,9.589e-05,2]
[344495505,1733518244791,-502.51217502,9.589e-05,2]
[344495506,1733518244800,-500.0,9.589e-05,2]
[344495507,1733518244809,-500.0,9.589e-05,2]
[344495508,1733518244818,-500.0,9.589e-05,2]
[344495509,1733518244827,-500.0,9.589e-05,2]
[344495510,1733518244836,-500.0,9.589e-05,2]
[344495511,1733518244847,-500.0,9.589e-05,2]
[344495512,1733518244865,-972.37,9.589e-05,2]
[344495513,1733518244877,-972.37,9.589e-05,2]
[344495514,1733518244886,-972.37,9.589e-05,2]
[344495515,1733518244896,-972.37,9.589e-05,2]
[344495516,1733518244905,-972.37,9.589e-05,2]
[344495517,1733518244914,-972.37,9.589e-05,2]
[344495518,1733518244923,-972.37,9.589e-05,2]
[344495519,1733518244934,-972.37,9.589e-05,2]
[344495520,1733518244943,-972.37,9.589e-05,2]
[344495521,1733518244953,-972.37,9.589e-05,2]
[344495522,1733518244962,-972.37,9.589e-05,2]
[344495523,1733518244972,-972.37,9.589e-05,2]
[344495524,1733518244981,-972.37,9.589e-05,2]
[344495525,1733518244990,-972.37,9.589e-05,2]
[344495526,1733518245000,-972.37,9.589e-05,2]
[344495527,1733518245009,-972.37,9.589e-05,2]
[344495528,1733518245019,-972.37,9.589e-05,2]
[344495529,1733518245028,-972.37,9.589e-05,2]
[344495530,1733518245038,-972.37,9.589e-05,2]
[344495531,1733518245046,-972.37,9.589e-05,2]
[344495532,1733518245056,-972.37,9.589e-05,2]
[344495533,1733518245065,-972.37,9.589e-05,2]
[344495534,1733518245074,-972.37,9.589e-05,2]
[344495535,1733518245083,-972.55854779,9.589e-05,2]
[344495536,1733518245093,-586.31167333,9.589e-05,2]
[344495537,1733518245102,-500.0,9.589e-05,2]
[344495538,1733518245112,-500.0,9.589e-05,2]
[344495539,1733518245122,-500.0,9.589e-05,2]
[344495540,1733518245132,-500.0,9.589e-05,2]
[344495541,1733518245142,-500.0,9.589e-05,2]
[344495542,1733518245151,-500.0,9.589e-05,2]
[344495543,1733518245160,-500.0,9.589e-05,2]
[344495544,1733518245170,-500.0,9.589e-05,2]
[344495545,1733518245180,-500.0,9.589e-05,2]
[344495546,1733518245189,-500.0,9.589e-05,2]
[344495547,1733518245198,-500.0,9.589e-05,2]
[344495548,1733518245208,-500.0,9.589e-05,2]
[344495549,1733518245217,-500.0,9.589e-05,2]
[344495550,1733518245227,-500.0,9.589e-05,2]
[344495551,1733518245236,-500.0,9.589e-05,2]
[344495552,1733518245246,-500.0,9.589e-05,2]
[344495553,1733518245255,-500.0,9.589e-05,2]
[344495554,1733518245267,-500.0,9.589e-05,2]
[344495555,1733518245276,-500.0,9.589e-05,2]
[344495556,1733518245286,-500.0,9.589e-05,2]
[344495557,1733518245295,-500.0,9.589e-05,2]
[344495558,1733518245304,-589.55016157,9.589e-05,2]
[344495559,1733518245313,-500.0,9.589e-05,2]
[344495560,1733518245323,-500.0,9.589e-05,2]
[344495561,1733518245332,-500.0,9.589e-05,2]
[344495562,1733518245342,-500.0,9.589e-05,2]
[344495563,1733518245351,-500.0,9.589e-05,2]
[344495564,1733518245361,-500.0,9.589e-05,2]
[344495565,1733518245370,-500.0,9.589e-05,2]
[344495566,1733518245379,-500.0,9.589e-05,2]
[344495567,1733518245388,-500.0,9.589e-05,2]
[344495568,1733518245397,-793.53,9.589e-05,2]
[344495569,1733518245408,-500.0,9.589e-05,2]
[344495570,1733518245417,-793.53,9.589e-05,2]
[344495571,1733518245427,-386.70781385,9.589e-05,2]
[344495572,1733518245437,-793.53,9.589e-05,2]
[344495573,1733518245446,-793.53,9.589e-05,2]
[344495574,1733518245457,-793.53,9.589e-05,2]
[344495575,1733518245468,-500.0,9.589e-05,2]
[344495576,1733518245477,-793.53,9.589e-05,2]
[344495577,1733518245488,-500.0,9.589e-05,2]
[344495578,1733518245499,-793.53,9.589e-05,2]
[344495579,1733518245508,-500.0,9.589e-05,2]
[344495580,1733518245518,-793.53,9.589e-05,2]
[344495581,1733518245527,-500.0,9.589e-05,2]
[344495582,1733518245536,-793.53,9.589e-05,2]
[344495583,1733518245547,-500.0,9.589e-05,2]
[344495584,1733518245556,-793.53,9.589e-05,2]
[344495585,1733518245565,-500.0,9.589e-05,2]
[344495586,1733518245575,-793.53,9.589e-05,2]
[344495587,1733518245585,-500.0,9.589e-05,2]
[344495588,1733518245594,-793.53,9.589e-05,2]
[344495589,1733518245604,-500.0,9.589e-05,2]
[344495590,1733518245613,-793.53,9.589e-05,2]
[344495591,1733518245623,-500.0,9.589e-05,2]
[344495592,1733518245632,-793.53,9.589e-05,2]
[344495593,1733518245642,-500.0,9.589e-05,2]
[344495594,1733518245651,-793.53,9.589e-05,2]
[344495595,1733518245662,-500.0,9.589e-05,2]
[344495596,1733518245672,-793.53,9.589e-05,2]
[344495602,1733518245969,-208.14181127,9.589e-05,2]
[344495605,1733518245979,-793.53,9.589e-05,2]
[344495607,1733518245988,-793.53,9.589e-05,2]
[344495609,1733518245998,-793.53,9.589e-05,2]
[344495611,1733518246007,-793.53,9.589e-05,2]
[344495613,1733518246017,-793.53,9.589e-05,2]
[344495615,1733518246027,-793.53,9.589e-05,2]
[344495616,1733518246036,-793.53,9.589e-05,2]
[344495617,1733518246046,-793.54229833,9.589e-05,2]
[344495618,1733518246055,-1633.5,9.589e-05,2]
[344495619,1733518246065,-500.0,9.589e-05,2]
[344495620,1733518246074,-1633.5,9.589e-05,2]
[344495621,1733518246084,-500.0,9.589e-05,2]
[344495622,1733518246093,-1633.5,9.589e-05,2]
[344495623,1733518246103,-500.0,9.589e-05,2]
[344495624,1733518246113,-1633.5,9.589e-05,2]
[344495625,1733518246122,-500.0,9.589e-05,2]
[344495626,1733518246132,-1633.5,9.589e-05,2]
[344495627,1733518246141,-459.98025437,9.589e-05,2]
[344495628,1733518246151,-295.0279008,9.589e-05,2]
[344495629,1733518246161,-1633.5,9.589e-05,2]
[344495630,1733518246170,-1633.5,9.589e-05,2]
[344495631,1733518246181,-1633.5,9.589e-05,2]
[344495632,1733518246190,-1633.5,9.589e-05,2]
[344495633,1733518246199,-1633.5,9.589e-05,2]
[344495634,1733518246208,-1633.5,9.589e-05,2]
[344495635,1733518246218,-1633.5,9.589e-05,2]
[344495636,1733518246227,-1633.5,9.589e-05,2]
[344495637,1733518246237,-1633.5,9.589e-05,2]
[344495638,1733518246246,-1633.5,9.589e-05,2]
[344495639,1733518246255,-1633.5,9.589e-05,2]
[344495640,1733518246265,-1633.5,9.589e-05,2]
[344495641,1733518246274,-208.55767738,9.589e-05,2]
[344495642,1733518246283,-1633.5,9.589e-05,2]
[344495643,1733518246292,-1633.5,9.589e-05,2]
[344495644,1733518246301,-1633.5,9.589e-05,2]
[344495645,1733518246310,-1633.5,9.589e-05,2]
[344495646,1733518246319,-1633.5,9.589e-05,2]
[344495647,1733518246328,-1633.5,9.589e-05,2]
[344495648,1733518246337,-1633.7356651,9.589e-05,2]
[344495649,1733518246346,-500.0,9.589e-05,2]
[344495650,1733518246355,-500.0,9.589e-05,2]
[344495651,1733518246365,-500.0,9.589e-05,2]
[344495652,1733518246374,-500.0,9.589e-05,2]
[344495653,1733518246383,-500.0,9.589e-05,2]
[344495654,1733518246392,-500.0,9.589e-05,2]
[344495655,1733518246401,-500.0,9.589e-05,2]
[344495656,1733518246411,-500.0,9.589e-05,2]
[344495657,1733518246420,-500.0,9.589e-05,2]
[344495658,1733518246432,-500.0,9.589e-05,2]
[344495659,1733518246441,-500.0,9.589e-05,2]
[344495660,1733518246451,-500.0,9.589e-05,2]
[344495661,1733518246464,-500.0,9.589e-05,2]
[344495662,1733518246474,-500.0,9.589e-05,2]
[344495663,1733518246483,-500.0,9.589e-05,2]
[344495664,1733518246493,-500.0,9.589e-05,2]
[344495665,1733518246502,-500.0,9.589e-05,2]
[344495666,1733518246513,-500.0,9.589e-05,2]
[344495667,1733518246523,-500.0,9.589e-05,2]
[344495668,1733518246532,-500.0,9.589e-05,2]
[344495669,1733518246542,-500.0,9.589e-05,2]
[344495670,1733518246551,-500.0,9.589e-05,2]
[344495671,1733518246560,-500.0,9.589e-05,2]
[344495672,1733518246570,-500.0,9.589e-05,2]
[344495673,1733518246579,-500.0,9.589e-05,2]
[344495674,1733518246587,-500.0,9.589e-05,2]
[344495675,1733518246597,-500.0,9.589e-05,2]
[344495676,1733518246606,-500.0,9.589e-05,2]
[344495677,1733518246615,-500.0,9.589e-05,2]
[344495678,1733518246624,-500.0,9.589e-05,2]
[344495679,1733518246634,-500.0,9.589e-05,2]
[344495680,1733518246643,-506.32483476,9.589e-05,2]
[344495681,1733518246652,-500.0,9.589e-05,2]
[344495682,1733518246661,-500.0,9.589e-05,2]
[344495683,1733518246670,-500.0,9.589e-05,2]
[344495684,1733518246680,-500.0,9.589e-05,2]
[344495685,1733518246689,-461.47110046,9.589e-05,2]
[344495686,1733518246698,-555.19369982,9.589e-05,2]
[344495687,1733518246707,-500.0,9.589e-05,2]
[344495688,1733518246717,-500.0,9.589e-05,2]
[344495689,1733518246726,-608.79071167,9.589e-05,2]
[344495690,1733518246735,-500.0,9.589e-05,2]
[344495691,1733518246744,-638.73560384,9.589e-05,2]
[344495692,1733518246754,-500.0,9.589e-05,2]
[344495693,1733518246763,-500.0,9.589e-05,2]
[344495694,1733518246772,-500.0,9.589e-05,2]
[344495695,1733518246780,-500.0,9.589e-05,2]
[344495696,1733518246790,-500.0,9.589e-05,2]
[344495697,1733518246799,-500.0,9.589e-05,2]
[344495698,1733518246808,-500.0,9.589e-05,2]
[344495699,1733518246817,-500.0,9.589e-05,2]
[344495700,1733518246827,-500.0,9.589e-05,2]
[344495701,1733518246836,-500.0,9.589e-05,2]
[344495702,1733518246845,-500.0,9.589e-05,2]
[344495703,1733518246854,-500.0,9.589e-05,2]
[344495704,1733518246863,-225.88297963,9.589e-05,2]
[344495705,1733518246872,-500.0,9.589e-05,2]
[344495706,1733518246882,-500.0,9.589e-05,2]
[344495707,1733518246891,-500.0,9.589e-05,2]
[344495708,1733518246900,-500.0,9.589e-05,2]
[344495709,1733518246909,-336.5581768,9.589e-05,2]
[344495710,1733518246918,-1082.54,9.589e-05,2]
[344495711,1733518246928,-1082.54,9.589e-05,2]
[344495712,1733518246937,-1082.54,9.589e-05,2]
[344495713,1733518246947,-1082.54,9.589e-05,2]
[344495714,1733518246955,-1082.54,9.589e-05,2]
[344495715,1733518246964,-500.0,9.589e-05,2]
[344495716,1733518246973,-1082.54,9.589e-05,2]
[344495717,1733518246983,-500.0,9.589e-05,2]
[344495718,1733518246991,-1082.54,9.589e-05,2]
[344495719,1733518247000,-500.0,9.589e-05,2]
[344495720,1733518247010,-1082.54,9.589e-05,2]
[344495721,1733518247019,-500.0,9.589e-05,2]
[344495722,1733518247028,-1082.54,9.589e-05,2]
[344495723,1733518247038,-218.61722887,9.589e-05,2]
[344495724,1733518247046,-1082.54,9.589e-05,2]
[344495725,1733518247055,-1082.54,9.589e-05,2]
[344495726,1733518247064,-1082.54,9.589e-05,2]
[344495727,1733518247074,-1082.54,9.589e-05,2]
[344495728,1733518247083,-1082.54,9.589e-05,2]
[344495729,1733518247093,-1082.54,9.589e-05,2]
[344495730,1733518247102,-1082.54,9.589e-05,2]
[344495731,1733518247111,-1082.54,9.589e-05,2]
[344495732,1733518247120,-1082.54,9.589e-05,2]
[344495733,1733518247129,-1082.54,9.589e-05,2]
[344495734,1733518247138,-1082.54,9.589e-05,2]
[344495735,1733518247147,-1082.54,9.589e-05,2]
[344495736,1733518247156,-1082.54,9.589e-05,2]
[344495737,1733518247165,-1082.54,9.589e-05,2]
[344495738,1733518247175,-1082.60130031,9.589e-05,2]
[344495739,1733518247186,-267.18133375,9.589e-05,2]